Cogmind - Beta 16.1 @@@ ROGUE MODE // 2026.05.01 @ 21:29:14 Player: Lazz Result: Destroyed by G-73 Enforcer with Phase Gun Performance ------------- Evolutions (6) 3000 Regions Visited (13) 2600 Robots Destroyed (157) 785 Value Destroyed (5593) 5593 Prototype IDs (8) 160 Alien Tech Used (0) 0 Bonus (1537) 1537 TOTAL SCORE: 13675 Bonus ------- High Alert Combat Kills 114 Follower Combat Kills 956 Met R17 at Cetus 500 Friendly Fire -33 Cogmind --------- Core Integrity 0/1150 Matter 113/300 Energy 100/100 System Corruption 5% Temperature Cool (27) Movement Hovering (160) Ox1 Location -4/Factory Parts ------- > --- POWER (2) -------- Backup Power I Backup Power I > --- PROPULSION (4) --- Backup Propulsion I > --- UTILITY (9) ------ Target Analyzer Target Analyzer Centrium Medium Armor Plating > --- WEAPON (4) ------- Backup Laser I Backup Laser I > --- INVENTORY (5) ---- Centrium Heavy Treads Improved Point Defense System Plasma Cutter Peak State ------------ > --- POWER ------------ Neutrino Core Quantum Reactor > --- PROPULSION ------- Centrium Heavy Treads Centrium Heavy Treads > --- UTILITY ---------- Advanced Heat Sink Medium Storage Unit Target Analyzer Target Analyzer Target Analyzer Target Analyzer Centrium Medium Armor Plating > --- WEAPON ----------- KE Penetrator KE Penetrator Advanced KE Penetrator Advanced KE Penetrator > --- INVENTORY -------- Improved Treads Improved Treads Advanced Heat Sink Improved Signal Interpreter Advanced Terrain Scan Processor Centrium Medium Armor Plating Improved System Shield Improved System Shield Plasma Cutter Power Sword [Rating: 110] Favorites ----------- Power Quantum Reactor Engine Improved Deuterium Engine Power Core Light Nuclear Core Reactor Quantum Reactor Propulsion Carbon-fiber Leg Treads Centrium Heavy Treads Leg Carbon-fiber Leg Wheel Compact Wheel Hover Unit Backup Propulsion I Flight Unit Nuclear Pulse Array Utility Target Analyzer Device Recoil Stabilizer Storage Medium Storage Unit Processor Target Analyzer Hackware Improved System Shield Protection Centrium Medium Armor Plating Weapon Advanced KE Penetrator Energy Gun Precision Beam Rifle Ballistic Gun Advanced KE Penetrator Ballistic Cannon Heavy Flak Cannon Launcher Mini Smartbomb Launcher Special Weapon Plasma Cutter Slashing Weapon Power Sword Build | -11 -10 -9 -9 -8 -7 -7 -7 -6 -6 -6 -6 -5 -4 ------- Run | Yrd Mat Mat Min Mat Fac Was Fac Fac Ext Cet Arc Fac Fac Slots Evolved 12 | . . 2 . 2 2 . . 2 . . . 2 2 Power 1 | . . . . . . . . 1 . . . . . Propulsion 2 | . . . . . 1 . . . . . . 1 . Utility 7 | . . 1 . 1 1 . . 1 . . . 1 2 Weapon 2 | . . 1 . 1 . . . . . . . . . Parts Attached 152 | 7 7 21 1 25 4 4 11 14 21 11 5 4 17 Power 27 | 1 2 2 1 4 . . . 4 6 3 1 . 3 Engine 12 | 1 1 1 . 2 . . . 3 4 . . . . Core 13 | . 1 1 1 2 . . . 1 2 1 1 . 3 Reactor 2 | . . . . . . . . . . 2 . . . Propulsion 36 | 2 3 9 . 3 1 . 3 4 6 2 1 1 1 Treads 17 | . . 9 . 3 1 . 1 . . 1 1 1 . Leg 17 | 2 3 . . . . . 1 4 6 1 . . . Wheel 1 | . . . . . . . 1 . . . . . . Hover . | . . . . . . . . . . . . . . Flight 1 | . . . . . . . . . . . . . 1 Utility 42 | 2 2 5 . 5 2 2 5 2 2 3 . 3 9 Device 17 | 1 1 3 . 2 1 . . 1 1 2 . 1 4 Storage 5 | 1 1 1 . . . . 1 . . . . . 1 Processor 15 | . . 1 . 2 1 2 4 1 . . . 1 3 Hackware 2 | . . . . . . . . . 1 . . . 1 Protection 3 | . . . . 1 . . . . . 1 . 1 . Artifact . | . . . . . . . . . . . . . . Weapon 47 | 2 . 5 . 13 1 2 3 4 7 3 3 . 4 Energy Gun 8 | . . 1 . 2 . 1 . . 2 . . . 2 Energy Cannon . | . . . . . . . . . . . . . . Ballistic Gun 29 | 2 . 4 . 8 1 . 3 4 3 2 2 . . Ballistic Cannon 3 | . . . . . . . . . 2 1 . . . Launcher 3 | . . . . 1 . . . . . . . . 2 Special Weapon 1 | . . . . 1 . . . . . . . . . Impact Weapon . | . . . . . . . . . . . . . . Slashing Weapon 3 | . . . . 1 . 1 . . . . 1 . . Piercing Weapon . | . . . . . . . . . . . . . . Special Melee Weapon . | . . . . . . . . . . . . . . Unidentified Prototypes 6 | . . 1 . 1 . . . . . 3 . . 1 Parts Lost 73 | . 1 4 1 15 . 7 . 10 13 2 . 4 16 Power 13 | . 1 1 . 1 . 1 . 2 4 . . . 3 Propulsion 14 | . . . . 3 . 2 . 2 4 . . . 3 Utility 16 | . . 2 . 4 . 3 . 2 . . . 1 4 Weapon 30 | . . 1 1 7 . 1 . 4 5 2 . 3 6 Highest Loss Streak 12 | . 1 2 1 12 . 7 . 5 8 2 . 4 7 To Critical Strikes 2 | . . . . . . . . . 1 . . . 1 Average Backups 9 | 2 6 10 15 12 9 7 6 8 9 8 8 9 7 Power . | . . . . . 1 . . . . . . . . Propulsion 1 | . 1 1 5 2 . . . . 1 1 1 1 1 Utility 4 | . 2 3 4 4 3 3 4 4 3 4 5 6 5 Weapon 2 | 1 2 5 4 3 2 1 1 2 2 1 1 1 . Tool/Special . | . . . . . . . . . . . . . . Unused Backups 17 | . . 1 . 6 . 2 . . 1 2 . 2 3 Power . | . . . . . . . . . . . . . . Propulsion 2 | . . . . . . . . . . . . 1 1 Utility 7 | . . . . 2 . 1 . . . 1 . 1 2 Weapon 7 | . . 1 . 4 . . . . 1 1 . . . Tool/Special 1 | . . . . . . 1 . . . . . . . Average Slot Usage (%) 87 | . 97 97 93 93 99 45 49 83 92 97 92 82 64 Engine 3 | . 11 1 1 3 7 2 . 2 8 6 . . . Core 3 | . . 7 9 4 . . . 1 2 . 6 1 1 Reactor 1 | . . . . . . . . . . 5 6 5 3 Treads 9 | . . 16 22 17 23 8 . 3 . . 9 10 6 Leg 7 | . 28 5 . . . . 6 10 19 18 2 . . Device 5 | . 14 11 11 7 6 3 . 1 . 1 6 4 3 Storage 7 | . 14 11 11 9 7 2 5 6 6 6 6 5 4 Processor 19 | . . 10 11 17 22 10 19 25 26 26 26 26 25 Hackware 1 | . . . . . . . . . 5 4 . . 3 Energy Gun 1 | . . . . 2 7 4 . . . 1 . . 2 Ballistic Gun 19 | . 28 31 27 25 14 6 11 22 16 5 19 22 3 Ballistic Cannon 1 | . . . . . . . . . 1 15 4 . . Slashing Weapon 1 | . . . . 1 7 4 4 . . . . . 3 Peak Build Rating 110 | 9 10 18 19 33 41 42 35 49 57 82 87 110 105 Average Rating 43 | 8 8 16 18 25 39 19 24 36 47 67 85 101 76 On Entrance 37 | . 9 10 17 18 32 41 9 35 49 57 81 87 85 Avg Prop Armor Cover (%) 8 | . . . . . . . . 10 . 4 4 . 12 Naked Turns 16 | . . . . . . 16 . . . . . . . Heaviest Build 77 | 14 19 36 34 43 43 43 23 44 53 77 67 74 55 Greatest Support 160 | 20 20 43 43 43 62 62 23 46 51 80 103 160 160 Greatest Overweight (x) 5 | 3 . 1 . 1 . 1 1 5 1 1 . . 2 Average Overweight (x) . | . . . . . . . . . . . . . . Largest Inventory Capacity 15 | 8 10 15 15 15 15 15 10 10 10 10 10 10 15 Average Capacity 11 | 7 9 13 15 15 15 8 8 10 10 10 10 10 9 Most Carried 15 | 3 10 15 15 15 12 12 10 10 10 10 10 10 11 Average Carried 9 | 2 6 10 15 12 9 7 7 9 9 9 9 9 7 Final Capacity 15 | 8 10 15 15 15 15 5 10 10 10 10 10 10 5 Final Carried 15 | 3 10 15 15 10 12 5 10 10 10 9 10 8 4 Class Distribution -------------------- 33% | Scavenger-Gunner 28% | Gunner 17% | Mutant 12% | Scavenger-Mutant 6% | Scavenger-Skirmisher Dominant Class ---------------- Mutant | -10/Materials Gunner | -9/Materials Mutant | -9/Mines Gunner | -8/Materials Scavenger-Skirmisher | -7/Factory Mutant | -7/Waste Gunner | -7/Factory Gunner | -6/Factory Scavenger-Gunner | -6/Extension Scavenger-Gunner | -6/Cetus Scavenger-Gunner | -6/Archives Scavenger-Gunner | -5/Factory Scavenger-Mutant | -4/Factory Resources | -11 -10 -9 -9 -8 -7 -7 -7 -6 -6 -6 -6 -5 -4 ----------- Run | Yrd Mat Mat Min Mat Fac Was Fac Fac Ext Cet Arc Fac Fac Matter Collected 5040 | 318 173 718 143 945 . . 51 687 664 376 362 352 251 Remotely . | . . . . . . . . . . . . . . Salvage Created 6306 | 170 354 1218 251 1726 . . 51 755 349 109 376 589 358 Parts 362 | 9 18 83 14 122 . . 2 33 14 4 22 23 18 Haulers Intercepted 8 | . . 3 . 3 . . 1 . 1 . . . . Recyclers Shooed 3 | 1 . . 1 . . . . 1 . . . . . Parts Field Recycled . | . . . . . . . . . . . . . . Retrieved Matter . | . . . . . . . . . . . . . . Parts Self-Destructed . | . . . . . . . . . . . . . . Prevented . | . . . . . . . . . . . . . . Parts Restored . | . . . . . . . . . . . . . . Kills | -11 -10 -9 -9 -8 -7 -7 -7 -6 -6 -6 -6 -5 -4 ------- Run | Yrd Mat Mat Min Mat Fac Was Fac Fac Ext Cet Arc Fac Fac Combat Hostiles Destroyed 117 | . 8 25 6 36 . . . 11 8 3 4 9 7 Melee 3 | . . . . 1 . . . . . . . . 2 Guns 106 | . 8 25 6 35 . . . 11 5 1 4 9 2 Cannons 5 | . . . . . . . . . 3 2 . . . AOE 3 | . . . . . . . . . . . . . 3 Classes Destroyed 18 | 3 1 8 . 3 . . . 1 . . . 1 1 Worker 5 | 2 . 2 . 1 . . . . . . . . . Builder 6 | . . 2 1 2 . . . 1 . . . . . Tunneler 4 | 2 . 1 . . . . . . . . . . 1 Hauler 8 | . . 3 . 3 . . 1 . 1 . . . . Recycler 2 | 1 . . . . . . . 1 . . . . . Mechanic 2 | . . 1 . . . . . . . . . . 1 Operator 7 | . . 2 . 2 . . . . . . 3 . . Watcher 6 | . . 3 . 2 . . . . . 1 . . . Swarmer 27 | . . 11 . 11 . . . 2 3 . . . . Grunt 55 | . 8 5 6 15 . . . 7 4 . . 5 5 Brawler 2 | . . 1 . . . . . . . . . 1 . Duelist 2 | . . . . . . . . 1 . . . 1 . Sentry 21 | . . 8 . 6 . . . 1 1 . 4 1 . Specialist 2 | . . . . 2 . . . . . . . . . Hunter 1 | . . . . 1 . . . . . . . . . Programmer 2 | . . . . . . . . . . . . . 2 Heavy 1 | . . . . 1 . . . . . . . . . Behemoth 1 | . . . . . . . . . . . . 1 . Cetus Guard 3 | . . . . . . . . . . 3 . . . Best Kill Streak 14 | 3 4 9 3 14 . . 1 6 4 4 4 4 3 Combat Bots Only 10 | . 4 6 3 10 . . . 6 4 2 4 4 3 Max Kills in Single Turn 3 | 1 1 2 1 3 . . 1 2 1 1 1 1 2 Gunslinging 1 | . . 1 . 1 . . . 1 . . . . . Exploded 2 | . . . . . . . . . . . . . 2 Melee 1 | . . . . 1 . . . . . . . . 1 Uniques/NPCs Destroyed . | . . . . . . . . . . . . . . Combat | -11 -10 -9 -9 -8 -7 -7 -7 -6 -6 -6 -6 -5 -4 -------- Run | Yrd Mat Mat Min Mat Fac Was Fac Fac Ext Cet Arc Fac Fac Hostile Shots Fired 1021 | . 36 99 11 161 . 9 . 94 147 42 14 104 304 Missed 289 | . 9 20 1 53 . . . 20 42 9 6 29 100 Hits 732 | . 27 79 10 108 . 9 . 74 105 33 8 75 204 Melee 16 | . . . . . . 9 . 5 . . . 2 . Projectile 716 | . 27 79 10 108 . . . 69 105 33 8 73 204 Critical Strikes 46 | . . . . 6 . 4 . 1 7 3 . 3 22 Damage Taken 14496 | . 348 903 117 2130 . 377 . 1485 1938 905 190 1874 4229 Core 2642 | . 141 126 34 232 . 232 . 171 310 27 . 204 1165 Absorbed by Shields . | . . . . . . . . . . . . . . Redirected to Shielding 56 | . . . . . . . . 56 . . . . . Regen/Repaired (Parts) 1542 | . . . . . . . . . 147 . . . 1395 Core Remaining (%) 63 | 100 43 . 60 57 . . 66 . . . 40 79 . Volleys Fired 345 | 12 27 53 12 81 . 7 . 32 42 18 11 20 30 Largest 4 | 2 2 3 3 4 . 4 . 4 4 4 4 4 3 Hottest 212 | 40 40 66 66 154 . 173 . 104 104 212 147 136 159 Shots Fired 905 | 24 54 156 32 212 . 25 1 87 88 60 43 79 44 Gun 820 | 24 54 156 32 211 . 25 1 87 62 20 32 79 37 Cannon 74 | . . . . . . . . . 23 40 11 . . Launcher 6 | . . . . 1 . . . . . . . . 5 Special 5 | . . . . . . . . . 3 . . . 2 Kinetic 853 | 24 54 156 32 208 . 12 1 87 85 53 43 79 19 Thermal 42 | . . . . 3 . 13 . . 3 3 . . 20 Explosive 6 | . . . . 1 . . . . . . . . 5 Electromagnetic 4 | . . . . . . . . . . 4 . . . Robot Hit Streak 27 | 7 14 19 15 22 . 10 . 19 12 8 8 27 11 Robot Miss Streak 8 | 1 2 3 2 3 . 1 . 3 8 7 3 5 1 Penetration Max 1 | . . . . . . . . 1 . 1 . 1 1 Secondary Targets 26 | . 2 9 . 5 . . . 4 4 . . 2 . Max Gunslinging Chain 1 | . 1 1 . 1 . . . 1 1 . . 1 . Shots Hit Robots 662 | 17 40 110 27 142 . 23 1 63 65 42 28 58 46 Core Hits 361 | 7 19 60 16 85 . 1 1 35 34 31 17 19 36 Critical Kills 14 | . . . . 2 . . . 3 . 3 2 3 1 Critical Parts Destroyed 20 | . . . 1 1 . . . 1 2 3 1 9 2 Critical Strikes 53 | . . . 1 3 . 2 . 4 6 11 3 14 9 Burn 2 | . . . . . . 2 . . . . . . . Destroy 41 | . . . 1 3 . . . 4 3 10 3 14 3 Blast 4 | . . . . . . . . . 3 1 . . . Sever 6 | . . . . . . . . . . . . . 6 Melee Attacks 41 | . . . . 2 2 . 2 . . . 5 2 28 Impact . | . . . . . . . . . . . . . . Slashing 41 | . . . . 2 2 . 2 . . . 5 2 28 Piercing . | . . . . . . . . . . . . . . Sneak Attacks 5 | . . . . . . . 1 . . . 3 . 1 Combat Hostiles . | . . . . . . . . . . . . . . Follow-up Attacks . | . . . . . . . . . . . . . . Damage Inflicted 14798 | 149 411 1765 397 2598 . 401 103 1147 1453 1198 992 1585 2599 Guns 10637 | 149 411 1760 397 2408 . 401 . 1147 777 433 482 1585 687 Cannons 1570 | . . . . . . . . . 634 765 171 . . Explosions 1599 | . . . . 144 . . . . . . . . 1455 Melee 921 | . . . . 38 . . 103 . . . 334 . 446 Ramming 50 | . . 5 . 8 . . . . 21 . 5 . 11 Kinetic 11667 | 149 411 1760 397 2392 . 183 . 1147 1411 1088 653 1585 491 Thermal 507 | . . . . 16 . 218 . . 21 56 . . 196 Explosive 1599 | . . . . 144 . . . . . . . . 1455 Electromagnetic 54 | . . . . . . . . . . 54 . . . Impact . | . . . . . . . . . . . . . . Slashing 921 | . . . . 38 . . 103 . . . 334 . 446 Piercing . | . . . . . . . . . . . . . . Highest Corruption 5 | . . 3 3 . 1 1 1 1 1 1 1 . 5 Average Corruption 1 | . . 1 3 . 1 1 1 1 1 1 1 . 2 Corruption Purged . | . . . . . . . . . . . . . . Corruption Blocked . | . . . . . . . . . . . . . . Effects 44 | . . 6 7 . . . 1 2 11 3 4 . 10 Message Errors 11 | . . 1 2 . . . . 1 3 1 1 . 2 Matter Fused 13 | . . 2 2 . . . . . 4 . . . 5 Heat Flow Errors 8 | . . 2 . . . . . 1 1 1 1 . 2 Energy Discharges 3 | . . . 1 . . . . . 1 1 . . . Data Loss (minor) 3 | . . . 2 . . . . . 1 . . . . Data Loss (major) 1 | . . . . . . . . . . . 1 . . Misfires 3 | . . . . . . . 1 . 1 . 1 . . Alerts 2 | . . 1 . . . . . . . . . . 1 Overload Shots . | . . . . . . . . . . . . . . Overflow Damage 128 | . . . . . . . . . 26 1 63 . 38 Projectiles 33 | . . . . . . . . . 26 1 6 . . Explosions 38 | . . . . . . . . . . . . . 38 Melee 57 | . . . . . . . . . . . 57 . . Knockbacks 2 | . . . . . . . . . . . 2 . . Impact . | . . . . . . . . . . . . . . Kinetic 2 | . . . . . . . . . . . 2 . . Secondary . | . . . . . . . . . . . . . . Self-Inflicted Damage 1 | . . . . . . . . . . . . . 1 Shots . | . . . . . . . . . . . . . . Rammed 8 | . . 1 . 2 . . . 1 . . 1 . 3 Targets Rammed 12 | . . 1 . 2 . . . 1 2 . 1 . 5 Kicked 2 | . . . . . . . . . 2 . . . . Crushed 2 | . . . . . . . . . . . . . 2 Highest Temperature 613 | . 25 102 24 81 . 229 . 184 613 443 132 189 401 Average Temperature 78 | . 9 10 9 15 . 93 . 35 163 192 35 65 127 Received Heat Transfer 4195 | . 186 234 66 576 . . . 420 1315 108 18 204 1068 Effects 18 | . . . . . . . . . 10 5 . . 3 Shutdowns 6 | . . . . . . . . . 4 2 . . . Energy Bleed 3 | . . . . . . . . . 1 2 . . . Interference 5 | . . . . . . . . . 2 1 . . 2 Matter Decay 1 | . . . . . . . . . 1 . . . . Short Circuit 1 | . . . . . . . . . 1 . . . . Damage (minor) 2 | . . . . . . . . . 1 . . . 1 Siege Activations . | . . . . . . . . . . . . . . Martial Activations . | . . . . . . . . . . . . . . Shielding Activations . | . . . . . . . . . . . . . . Robots Disrupted . | . . . . . . . . . . . . . . Combat Hostiles . | . . . . . . . . . . . . . . Robots Corrupted . | . . . . . . . . . . . . . . Combat Hostiles . | . . . . . . . . . . . . . . Parts Fried . | . . . . . . . . . . . . . . Impact Corruptions . | . . . . . . . . . . . . . . Robots Melted . | . . . . . . . . . . . . . . Combat Hostiles . | . . . . . . . . . . . . . . Parts Melted . | . . . . . . . . . . . . . . Heat Transferred 1369 | . . . . 37 . 629 . . 74 111 . . 518 Parts Sabotaged . | . . . . . . . . . . . . . . Parts Stolen . | . . . . . . . . . . . . . . Parts Stripped . | . . . . . . . . . . . . . . Power Chain Reactions . | . . . . . . . . . . . . . . Alert | -11 -10 -9 -9 -8 -7 -7 -7 -6 -6 -6 -6 -5 -4 ------- Run | Yrd Mat Mat Min Mat Fac Was Fac Fac Ext Cet Arc Fac Fac Maximum Alert Level 2 | . . 1 1 2 1 . . . 1 . . . . Low Security (%) 83 | 100 100 73 96 26 95 100 100 100 89 100 100 100 100 Level 1 9 | . . 26 3 28 4 . . . 10 . . . . Level 2 6 | . . . . 44 . . . . . . . . . Level 3 . | . . . . . . . . . . . . . . Level 4 . | . . . . . . . . . . . . . . Level 5 . | . . . . . . . . . . . . . . High Security . | . . . . . . . . . . . . . . Max Security . | . . . . . . . . . . . . . . Peak Influence 461 | 10 86 329 203 461 200 3 15 120 248 162 108 106 139 Initial 200 | . . 16 123 53 200 3 . . 40 118 . . . Average 92 | . 29 113 168 299 105 . 1 43 65 49 29 35 24 Influence Increases 4432 | 25 196 732 145 1081 7 . 22 301 782 235 146 294 466 Destroy 0b10 Robot/C 2680 | . 160 500 120 720 . . . 220 400 160 80 180 140 Destroy 0b10 Robot/NC 235 | 25 . 70 5 50 . . 5 10 35 10 15 . 10 Destroy Leader 496 | . 30 142 20 180 . . 2 40 32 . . 30 20 Allied During Kill 226 | . . . . 6 . . . . 193 27 . . . Successful Hack 59 | . 6 18 . . 5 . . . 22 8 . . . Disable Machine 285 | . . . . 45 . . 15 30 90 15 45 30 15 Destroy Structure 136 | . . 2 . 20 2 . . 1 10 15 6 24 56 Lose Combat Pursuer 315 | . . . . 60 . . . . . . . 30 225 Influence Decreases 4331 | 25 156 455 324 777 440 9 22 217 654 447 146 294 365 Entered New Map 689 | . . 24 194 85 242 6 . . 44 94 . . . Time Decay 2809 | 25 146 394 120 502 198 3 22 137 386 248 146 264 218 Lost Part 562 | . 10 37 10 150 . . . 80 85 13 . 30 147 Lost Ally 187 | . . . . 40 . . . . 55 92 . . . Purge Threat 84 | . . . . . . . . . 84 . . . . Squads Dispatched 22 | . 1 2 . 6 1 . . 5 3 . . 2 2 Investigation 7 | . 1 1 . 2 1 . . 1 1 . . . . Extermination 2 | . . . . . . . . . . . . . 2 Reinforcement 10 | . . 1 . 4 . . . 1 2 . . 2 . Assault . | . . . . . . . . . . . . . . Garrison 3 | . . . . . . . . 3 . . . . . Intercept . | . . . . . . . . . . . . . . Searches Triggered . | . . . . . . . . . . . . . . Construction Impeded 4 | . . . . 1 . . . 1 2 . . . . Haulers Reinforced . | . . . . . . . . . . . . . . Active Scanning Responses . | . . . . . . . . . . . . . . Cargo Convoy Interrupts . | . . . . . . . . . . . . . . Stealth | -11 -10 -9 -9 -8 -7 -7 -7 -6 -6 -6 -6 -5 -4 --------- Run | Yrd Mat Mat Min Mat Fac Was Fac Fac Ext Cet Arc Fac Fac Distress Signals 9 | . . 1 . 3 . . . 1 2 2 . . . Communications Jammed . | . . . . . . . . . . . . . . Distress Signals . | . . . . . . . . . . . . . . Times Spotted 206 | . 10 36 6 47 . 5 . 12 23 8 16 14 29 Peak Tracking Total 12 | . 5 5 3 8 . 5 . 4 5 5 2 4 12 Tactical Retreats 16 | . . . . 4 . . . . . . . 1 11 Traps | -11 -10 -9 -9 -8 -7 -7 -7 -6 -6 -6 -6 -5 -4 ------- Run | Yrd Mat Mat Min Mat Fac Was Fac Fac Ext Cet Arc Fac Fac Traps Triggered 10 | . 2 1 . . 1 . . 2 1 . . 1 2 Indirectly . | . . . . . . . . . . . . . . Trap Hack Attempts . | . . . . . . . . . . . . . . Triggered . | . . . . . . . . . . . . . . Disarmed . | . . . . . . . . . . . . . . Reprogrammed . | . . . . . . . . . . . . . . Reused . | . . . . . . . . . . . . . . Traps Extracted . | . . . . . . . . . . . . . . Installed . | . . . . . . . . . . . . . . Triggered . | . . . . . . . . . . . . . . Machines | -11 -10 -9 -9 -8 -7 -7 -7 -6 -6 -6 -6 -5 -4 ---------- Run | Yrd Mat Mat Min Mat Fac Was Fac Fac Ext Cet Arc Fac Fac Machines Disabled 19 | . . . . 3 . . 1 2 6 1 3 2 1 Max in Single Turn 1 | . . . . 1 . . 1 1 1 1 1 1 1 Garrison Access 1 | . . . . 1 . . . . . . . . . Machines Repaired . | . . . . . . . . . . . . . . Machines Dismantled 6 | . . . . 1 . . . . 4 1 . . . Machines Sabotaged . | . . . . . . . . . . . . . . Overloaded Fab Kills . | . . . . . . . . . . . . . . Hacking | -11 -10 -9 -9 -8 -7 -7 -7 -6 -6 -6 -6 -5 -4 --------- Run | Yrd Mat Mat Min Mat Fac Was Fac Fac Ext Cet Arc Fac Fac Machines Accessed 28 | . 1 4 1 5 2 . . 1 6 3 1 2 2 Terminals 21 | . 1 3 1 4 1 . . 1 5 3 . 1 1 Fabricators . | . . . . . . . . . . . . . . Repair Stations 2 | . . . . . . . . . 1 . . . 1 Recycling Units . | . . . . . . . . . . . . . . Scanalyzers 3 | . . 1 . . 1 . . . . . . 1 . Garrison Access 1 | . . . . 1 . . . . . . . . . Total Hacks 111 | . 2 15 2 12 8 . . 1 22 8 25 3 13 Successful 53 | . 1 7 . 1 2 . . 1 8 2 25 . 6 Failed 56 | . . 7 2 11 6 . . . 14 6 . 3 7 Catastrophic 16 | . . 2 1 5 1 . . . 4 2 . 1 . Database Lockouts 2 | . 1 1 . . . . . . . . . . . Manual 21 | . 2 5 . . 6 . . . 6 . . 2 . Terminals 64 | . 2 8 2 10 6 . . 1 20 8 . 2 5 Fabricators . | . . . . . . . . . . . . . . Repair Stations 10 | . . . . . . . . . 2 . . . 8 Recycling Units . | . . . . . . . . . . . . . . Scanalyzers 10 | . . 7 . . 2 . . . . . . 1 . Garrison Access 2 | . . . . 2 . . . . . . . . . Terminal Hacks 40 | . 1 3 . . 1 . . 1 6 2 25 . 1 Record 27 | . . . . . . . . . . 2 25 . . Part Schematic 1 | . . . . . . . . . 1 . . . . Robot Analysis 2 | . 1 . . . . . . . 1 . . . . Prototype ID Bank 1 | . . 1 . . . . . . . . . . . Open DSF 2 | . . . . . . . . 1 . . . . 1 Branch Access Points 1 | . . 1 . . . . . . . . . . . Terminal Index 1 | . . . . . 1 . . . . . . . . Alert Level 1 | . . . . . . . . . 1 . . . . Unreport Threat 1 | . . . . . . . . . 1 . . . . Dispatch Records 1 | . . . . . . . . . 1 . . . . Patrol Status 1 | . . . . . . . . . 1 . . . . Registered Components 1 | . . 1 . . . . . . . . . . . Fabricator Hacks . | . . . . . . . . . . . . . . Repair Station Hacks 7 | . . . . . . . . . 2 . . . 5 Scan Component 3 | . . . . . . . . . 1 . . . 2 Repair 3 | . . . . . . . . . 1 . . . 2 Refit 1 | . . . . . . . . . . . . . 1 Recycling Unit Hacks . | . . . . . . . . . . . . . . Scanalyzer 4 | . . 4 . . . . . . . . . . . Retrieve Study 4 | . . 4 . . . . . . . . . . . Garrison Access Hacks 1 | . . . . 1 . . . . . . . . . Seal Access 1 | . . . . 1 . . . . . . . . . Unauthorized Hacks 1 | . . . . . 1 . . . . . . . . Terminals 1 | . . . . . 1 . . . . . . . . Botnet 1 | . . . . . 1 . . . . . . . . Fabricators . | . . . . . . . . . . . . . . Repair Stations . | . . . . . . . . . . . . . . Recycling Units . | . . . . . . . . . . . . . . Scanalyzers . | . . . . . . . . . . . . . . Garrison Access . | . . . . . . . . . . . . . . Data Cores Recovered 4 | . . 2 . 2 . . . . . . . . . Used . | . . . . . . . . . . . . . . Hacking Detections 23 | . 1 3 1 5 2 . . . 5 3 . 2 1 Full Trace Events 7 | . . 2 . 3 1 . . . 1 . . . . Feedback Events 2 | . . 1 . . 1 . . . . . . . . Corruption 2 | . . 1 . . 1 . . . . . . . . Feedback Blocked . | . . . . . . . . . . . . . . Robot Schematics Acquired . | . . . . . . . . . . . . . . Robots Built . | . . . . . . . . . . . . . . Authchips . | . . . . . . . . . . . . . . Time . | . . . . . . . . . . . . . . Total Robot Build Rating . | . . . . . . . . . . . . . . Part Schematics Acquired 1 | . . . . . . . . . 1 . . . . Parts Built . | . . . . . . . . . . . . . . Authchips . | . . . . . . . . . . . . . . Time . | . . . . . . . . . . . . . . Total Part Build Rating . | . . . . . . . . . . . . . . Part Studies Acquired 4 | . . 4 . . . . . . . . . . . Parts Repaired 3 | . . . . . . . . . 1 . . . 2 Time 266 | . . . . . . . . . 50 . . . 216 Parts Recycled . | . . . . . . . . . . . . . . Recycled Matter . | . . . . . . . . . . . . . . Retrieved Matter . | . . . . . . . . . . . . . . Retrieved Components . | . . . . . . . . . . . . . . Parts Scanalyzed . | . . . . . . . . . . . . . . Part Schematics Acquired . | . . . . . . . . . . . . . . Parts Damaged . | . . . . . . . . . . . . . . Bothacking | -11 -10 -9 -9 -8 -7 -7 -7 -6 -6 -6 -6 -5 -4 ------------ Run | Yrd Mat Mat Min Mat Fac Was Fac Fac Ext Cet Arc Fac Fac Used RIF Installer . | . . . . . . . . . . . . . . Robots Hacked . | . . . . . . . . . . . . . . Non-combat . | . . . . . . . . . . . . . . Combat . | . . . . . . . . . . . . . . Robot Hacks Applied . | . . . . . . . . . . . . . . Relay Couplers Released . | . . . . . . . . . . . . . . Fabnet Peak Effective % . | . . . . . . . . . . . . . . Robots Rewired 6 | . . . . . . . . . 6 . . . . Allies Hacked . | . . . . . . . . . . . . . . Hacks Repelled . | . . . . . . . . . . . . . . Allies | -11 -10 -9 -9 -8 -7 -7 -7 -6 -6 -6 -6 -5 -4 -------- Run | Yrd Mat Mat Min Mat Fac Was Fac Fac Ext Cet Arc Fac Fac Total Allies 14 | . . . 2 . . 1 . . 11 . . . . Largest Group 10 | . . . 2 2 . 1 . . 10 6 . . . Highest-Rated Group 325 | . . . 43 43 . 31 . . 325 197 . . . Highest-Rated Ally 39 | . . . 31 31 . 31 . . 39 39 . . . Total Orders . | . . . . . . . . . . . . . . Ally Attacks 154 | . . . . 11 . 9 . . 107 27 . . . Total Damage 2806 | . . . . 171 . 186 . . 1988 461 . . . Kills 25 | . . . . . . . . . 18 7 . . . Allies Corrupted . | . . . . . . . . . . . . . . Allies Melted . | . . . . . . . . . . . . . . Intel | -11 -10 -9 -9 -8 -7 -7 -7 -6 -6 -6 -6 -5 -4 ------- Run | Yrd Mat Mat Min Mat Fac Was Fac Fac Ext Cet Arc Fac Fac Active Infowar (turns) 3126 | 432 425 748 . . 408 63 . . 29 . . 380 641 Sensors 109 | . . . . . . . . . 29 . . . 80 Terrain 1549 | 432 166 100 . . 408 63 . . . . . 380 . Structural 1007 | . 259 748 . . . . . . . . . . . Machine Analysis 641 | . . . . . . . . . . . . . 641 Robot Analysis Total 2 | . 1 . . . . . . . 1 . . . . Derelict Logs Recovered 1 | . . . 1 . . . . . . . . . . Drone Launches . | . . . . . . . . . . . . . . Drone Recoveries . | . . . . . . . . . . . . . . Exploration | -11 -10 -9 -9 -8 -7 -7 -7 -6 -6 -6 -6 -5 -4 ------------- Run | Yrd Mat Mat Min Mat Fac Was Fac Fac Ext Cet Arc Fac Fac Turns Passed 9081 | 592 425 1307 251 1343 409 161 183 472 1066 723 440 697 1012 Spaces Moved 4172 | 127 181 619 125 535 241 133 101 289 497 323 235 286 480 Core 252 | 12 . . . . . 109 20 4 . . . . 107 Treads 2243 | . . 470 125 535 241 24 2 8 . 43 235 286 274 Legs 1418 | 115 181 149 . . . . 75 121 497 280 . . . Wheels 160 | . . . . . . . 4 156 . . . . . Hover 87 | . . . . . . . . . . . . . 87 Flight 12 | . . . . . . . . . . . . . 12 Fastest Speed 40 | 50 120 105 160 160 161 50 100 115 120 160 160 160 40 Average Speed 147 | 123 120 158 160 174 163 98 154 124 123 186 160 160 118 Slowest Speed 300 | 200 120 240 160 250 166 161 200 300 190 190 160 160 160 Overloaded Moves . | . . . . . . . . . . . . . . Propulsion Burnouts . | . . . . . . . . . . . . . . Robots Hopped . | . . . . . . . . . . . . . . Potential Cave-ins 2 | . . . . . . . . . . . . . 2 Cave-ins Triggered . | . . . . . . . . . . . . . . Exploration Rate (%) 40 | 6 38 66 32 61 6 77 3 9 58 93 96 8 11 Regions Visited 13 Branch Regions 4 Pre-discovered Areas . | . . . . . . . . . . . . . . Known Exits Taken 1 | . . 1 . . . . . . . . . . . Unknown Exits Taken 10 | 1 1 . 1 1 . . 1 1 1 1 1 1 . Scrap Searched . | . . . . . . . . . . . . . . Spaces Dug 14 | . . . . 1 2 . . . . . . 2 9 Terrain Destroyed 95 | . . . . 16 2 . . . 2 8 9 21 37 Melee 14 | . . . . 1 2 . . . . . . 2 9 Projectile 45 | . . . . . . . . . 2 8 9 19 7 AOE 36 | . . . . 15 . . . . . . . . 21 Terrain Rammed . | . . . . . . . . . . . . . . Walls Destroyed . | . . . . . . . . . . . . . . Machines Disabled . | . . . . . . . . . . . . . . Actions | -11 -10 -9 -9 -8 -7 -7 -7 -6 -6 -6 -6 -5 -4 --------- Run | Yrd Mat Mat Min Mat Fac Was Fac Fac Ext Cet Arc Fac Fac Total 6251 | 536 337 829 151 771 252 146 119 342 814 389 264 471 830 Wait 1253 | 388 117 106 13 88 . . . 2 137 6 1 143 252 Move 4160 | 126 180 618 124 534 241 132 100 288 496 322 234 285 480 Hop . | . . . . . . . . . . . . . . Pick Up 63 | 3 4 12 . 13 3 2 4 1 5 4 3 6 3 Fast Attach 74 | 7 1 5 . 7 1 2 11 10 12 4 2 . 12 Attach 34 | . . 5 . 11 2 2 1 3 3 . . 3 4 Detach 7 | . . . . . . . 1 1 . . . . 5 Swap 82 | . 6 14 1 10 2 1 . 4 15 11 3 8 7 Drop 70 | . 2 15 1 15 1 . . . 9 15 4 4 4 Fire 345 | 12 27 53 12 81 . 7 . 32 42 18 11 20 30 Melee 41 | . . . . 2 2 . 2 . . . 5 2 28 Ram 2 | . . . . . . . . . . . . . 2 Kick 2 | . . . . . . . . . 2 . . . . Crush 8 | . . 1 . 2 . . . 1 . . 1 . 3 Escape Stasis 9 | . . . . . . . . . 9 . . . . Rewire 51 | . . . . . . . . . 51 . . . . Trap . | . . . . . . . . . . . . . . Miscellaneous 50 | . . . . 8 . . . . 33 9 . . . Route ------- -11/Scrapyard -10/Materials -9/Materials (discovered 5 exits: *Mat x2 / *Min / *Sto x2) -9/Mines -8/Materials -7/Factory -7/Waste -7/Factory -6/Factory -6/Extension (discovered 2 exits: *Fac / *Cet) -6/Cetus (discovered 3 exits: *Fac x2 / *Arc) -6/Archives (discovered 3 exits: *Fac / [*Hub x2]) -5/Factory -4/Factory History --------- Turn | Location | Event 20 | -11/Scrapyard | Discovered new exit (range 16) 593 | -11/Scrapyard | Entered Materials 594 | -10/Materials | Build established: Mutant 777 | -10/Materials | Central database locked down 909 | -10/Materials | Discovered new exit (range 4) 982 | -10/Materials | Core integrity fell below 50% 1018 | -10/Materials | Entered another Materials area 1018 | -9/Materials | Evolved 2 slots: Utility x1, Weapon x1 1060 | -9/Materials | Central database locked down 1354 | -9/Materials | Identified exit to Mines 1354 | -9/Materials | Identified exit to Storage 1426 | -9/Materials | Build established: Gunner 1850 | -9/Materials | Discovered new exit (range 4) 2198 | -9/Materials | Discovered new exit (range 3) 2325 | -9/Materials | Entered Mines 2372 | -9/Mines | Discovered new exit (range 12) 2576 | -9/Mines | Entered Materials 2576 | -8/Materials | Accompanied by 2 allies 2576 | -8/Materials | Evolved 2 slots: Utility x1, Weapon x1 2581 | -8/Materials | Led the pair of lost Derelicts to an unsafe place 2978 | -8/Materials | Destroyed 10 combat bots 3156 | -8/Materials | Destroyed 7 combat bots 3575 | -8/Materials | Lost 12 parts (1p3n3u5w) 3709 | -8/Materials | Discovered new exit (range 16) 3919 | -8/Materials | Entered Factory 3919 | -7/Factory | Evolved 2 slots: Propulsion x1, Utility x1 4221 | -7/Factory | Build established: Scavenger-Skirmisher 4328 | -7/Factory | Sucked down chute 4328 | -7/Factory | Entered Waste 4329 | -7/Waste | Met a frightened Derelict 4351 | -7/Waste | Spotted C-40 Crusher 4362 | -7/Waste | Crushed by Compactor (1 part destroyed, 1 dropped) 4385 | -7/Waste | Crushed by Compactor (1 part destroyed, 2 dropped) 4388 | -7/Waste | Crushed by Compactor (1 part destroyed, 2 dropped) 4391 | -7/Waste | Crushed by Compactor (1 part destroyed, 2 dropped) 4394 | -7/Waste | Crushed by Compactor (1 part destroyed, 2 dropped) 4397 | -7/Waste | Crushed by Compactor (1 part destroyed) 4425 | -7/Waste | Spotted C-40 Crusher 4428 | -7/Waste | Lost 7 parts (1p2n3u1w) 4434 | -7/Waste | Spotted C-40 Crusher 4436 | -7/Waste | Spotted C-40 Crusher 4455 | -7/Waste | Spotted C-40 Crusher 4478 | -7/Waste | Discovered new exit (range 10) 4489 | -7/Waste | Entered Factory 4584 | -7/Factory | Discovered new exit (range 10) 4672 | -7/Factory | Entered another Factory area 4672 | -6/Factory | Evolved 2 slots: Power x1, Utility x1 4901 | -6/Factory | Garrison activated, responded to threat 4961 | -6/Factory | Lost 5 parts (2n1u2w) 5086 | -6/Factory | Lost 3 parts (1p1u1w) 5127 | -6/Factory | Discovered new exit (range 13) 5144 | -6/Factory | Entered Extension 5240 | -6/Extension | Build established: Scavenger-Gunner 5301 | -6/Extension | Rescued a captive Derelict 5419 | -6/Extension | Rescued a captive Derelict 5420 | -6/Extension | Rescued a captive Derelict 5480 | -6/Extension | Rescued a captive Derelict 5796 | -6/Extension | Repaired Coil Gun 5865 | -6/Extension | Rescued a captive Derelict 5872 | -6/Extension | Spotted B-75 Beast 5879 | -6/Extension | Spotted B-75 Beast 5911 | -6/Extension | Core integrity fell below 50% 5914 | -6/Extension | Allies destroyed B-75 Beast 5926 | -6/Extension | Allies destroyed B-75 Beast 5941 | -6/Extension | Lost 8 parts (2p3n3w) 5952 | -6/Extension | Lost 4 allies 6157 | -6/Extension | Discovered new exit (range 16) 6157 | -6/Extension | Discovered new exit (range 16) 6210 | -6/Extension | Entered Cetus 6210 | -6/Cetus | Accompanied by 6 allies 6236 | -6/Cetus | Spotted Cetus Guard 6237 | -6/Cetus | Spotted Cetus Guard 6240 | -6/Cetus | Spotted Cetus Guard 6240 | -6/Cetus | Spotted Cetus Guard 6247 | -6/Cetus | Allies destroyed Cetus Guard 6247 | -6/Cetus | Allies destroyed Cetus Guard 6251 | -6/Cetus | Allies destroyed Cetus Guard 6259 | -6/Cetus | Allies destroyed Cetus Guard 6278 | -6/Cetus | Lost 3 allies 6389 | -6/Cetus | Discovered new exit (range 16) 6738 | -6/Cetus | Discovered new exit (range 16) 6771 | -6/Cetus | Spotted Cetus Guard 6771 | -6/Cetus | Spotted Cetus Guard 6774 | -6/Cetus | Destroyed Cetus Guard 6790 | -6/Cetus | Spotted Cetus Guard 6793 | -6/Cetus | Allies destroyed Cetus Guard 6802 | -6/Cetus | Destroyed Cetus Guard 6821 | -6/Cetus | Destroyed Cetus Guard 6825 | -6/Cetus | Lost 3 allies 6838 | -6/Cetus | Discovered new exit (range 16) 6849 | -6/Cetus | Met Revision 17 6933 | -6/Cetus | Entered Archives 7003 | -6/Archives | Discovered new exit (range 16) 7024 | -6/Archives | Discovered new exit (range 16) 7081 | -6/Archives | Unable to access archive contents 7097 | -6/Archives | Unable to access archive contents 7113 | -6/Archives | Unable to access archive contents 7123 | -6/Archives | Discovered new exit (range 15) 7373 | -6/Archives | Entered Factory 7373 | -5/Factory | Evolved 2 slots: Propulsion x1, Utility x1 7594 | -5/Factory | Spotted B-75 Beast 7621 | -5/Factory | Destroyed B-75 Beast 8023 | -5/Factory | Discovered new exit (range 15) 8070 | -5/Factory | Entered another Factory area 8070 | -4/Factory | Evolved 2 slots: Utility x2 8092 | -4/Factory | Lost 4 parts (1u3w) 8231 | -4/Factory | Repaired Centrium Heavy Treads 8329 | -4/Factory | Build established: Scavenger-Mutant 8341 | -4/Factory | Repaired Centrium Heavy Treads 8754 | -4/Factory | Lost 3 parts (2p1w) 8920 | -4/Factory | Core integrity fell below 50% 8923 | -4/Factory | Found Prototype Launcher 8923 | -4/Factory | Identified Mni. Smartbomb Launcher 8925 | -4/Factory | Found Mni. Smartbomb Launcher 8955 | -4/Factory | Core integrity fell below 20% 8988 | -4/Factory | Lost 7 parts (1p2n2u2w) 9082 | -4/Factory | Destroyed by G-73 Enforcer with Phase Gun Last Messages --------------- 08959_ Target Analyzer severed. 08962_ U-05 Engineer lays Concrete. 08986_ Acquired 98 matter. 08998_ ,QN>Refit Scanning configuration... Attaching: Backup Power I x2 Backup Propulsion I x2 Backup Laser I x2 09016_ System corrupted: Matter fused (-9). 09038_ ALERT: Potential suspicious activity detected, Programmers report to Factory Zone 7R. 09065_ Adv. Signal Interpreter destroyed. 09067_ System corrupted: Heat flow error (+199). 09079_ Penetrated by Slug. 09079_ Backup Propulsion I destroyed. 09082_ Critical hit (Burn: +37). Map ----- +----------------------------------------------------+ | ?""??# ###### ####+#### ###?????????? | | ?"""?# #?????????? | | ?"""?# #?????????? | | ?"""?+ """ /?????????? | | ?????# ^ "G # ????????? | | ?""??# """ # "???????? | | ?""??##### ############## #?"???????? | | ?"""?????# """ #????????? #??"??????? | | ?"""??# "" """""" """"#????????? #?????????? | | ?"""??#""" """""" "F""#??????????#?????????? | | ??????#"F """""" ""#????????????????????? | | ??????#""" """""" """#????????????????????? | | ??????# "" "" #????????????????????? | | ??????#### """""" #####????????????????????? | | ?????????# """""" ##???????????????????????? | | ?????????# """""" ! #???# ??????????????????? | | ?????????# """""" #???# ?????????????????? | | ?????????# #???? ????????????????? | | ?????????#% #????? ???????????????? | | ##########+## #?????? ??????????????? | | # #??????? ?????????????? | | # ##########+############## | | """" """" # Y | | """" """" # g | | """" """" # g | | """" """" + @ ! *[ | | | # ! [%! *%! | | """" # ############## T########/ | | """ """" # # #### | | "R """" ######## # """"""""" # " | | """ """" #??????# + #### | | #??????# # """"""""" ##?# = = | | #################### p # [ #??# | | ?????????## ##############??# | | ??????????# ##########+#######???????????# | | ??????????# #???# #???????????# [ | | ??????????# #???# #???????????######### | | ??????????# #???# #???????????????????? | | ??????????# #???# #???????????????????? | | ??????????# #???# #????????"""""""""??? | | ??######### #???# #???????????????????? | | ## #???# #????????"""""""""??? | | """"""" ## ##??# #???????????????????? | | """"""" # #### ##???????"""""""""??? | | """"""" + + # #?????????????????? | | """"""" # #### ## #?????"""""""""??? | | ##+##### #?? #???????????????? | | ! # ###############??? ???????????????? | | # ! #?????????????????????????????????? | | ########## #?????????????????????????????????? | +----------------------------------------------------+ Best States ------------- Heat Dissipation 62 Energy Generation 39 Energy Capacity 565 Matter Stores 300 Matter Capacity 300 Sight Range 16 Robot Scan Range 16 Terrain Scan Range 16 Terrain Scan Density 210 EM Shielding 2 Armor Coverage 450 Weapon Shielding 33 Point Defense Rating 160 Evasion (%) 55 Targeting Accuracy 11 Melee Accuracy 6 Target Analysis 8 Recoil Reduction 6 Salvage Targeting 2 Defensive Hacking 12 Item Schematics ----------------- Drone Bay | -6/Extension | Hacked Robot Schematics ------------------ None Fabricated ------------ Nothing Repaired ---------- Coil Gun | 2% | -6/Extension Centrium Heavy Treads | 6% | -4/Factory Centrium Heavy Treads | 18% | -4/Factory Studied --------- Shotgun | -9/Materials | Hacked Aluminum Leg | -9/Materials | Hacked Assault Rifle | -9/Materials | Hacked Grenade Launcher | -9/Materials | Hacked Alien Tech Used ----------------- None Achievements -------------- Revising The Future Challenges ------------ None Game ------ Seed HackingThermalCapacitor Manual? 0 Play Time 01:34:35 Cumulative 181.4 hours Start 2026.05.01 @ 06:25:58 End 2026.05.01 @ 21:29:14 Sessions 7 Manual Loads 0 Difficulty Rogue Special Mode None Game No. 257 Rogue 257 Adventurer 0 Explorer 0 Win Type - Total 2 Types 1/0/0/1/0/0/0/0/0/0 Lore% 72 Gallery% 60 Achievement% 46 Wizard Run 0 Options --------- Layout 2 ASCII 0 Keyboard 0 Movement Mouse Keybinds 0 Fullscreen 1 Font 16/SmallcapsGlow Map View 50x49 Zoom Use 2% Tactical HUD 1 Map Filters NONE Filters NONE Steam SD RUN: 86802c10-3015-4796-94e7-e21d334ad32b